lending/lending_fUSD_20251022
["ID","MTS","AMOUNT","RATE_DAILY","PERIOD"]
[392046369,1761119638877,-187.93,0.00034288,60]
[392046370,1761119638925,-500.0,0.00034288,120]
[392046371,1761119638972,-243.25537774,0.00034288,120]
[392046372,1761119639018,-500.0,0.00034288,120]
[392046373,1761119639065,-500.0,0.00034288,120]
[392046374,1761119639113,-397.12647058,0.00034288,120]
[392046375,1761119639158,-552.14159771,0.00034288,120]
[392046376,1761119639203,-511.39931591,0.00034288,120]
[392046377,1761119639252,-223.01939834,0.00034288,120]
[392046378,1761119639307,-560.07283084,0.00034288,120]
[392046379,1761119639356,-606.36779547,0.00034288,120]
[392046380,1761119639406,-524.89861001,0.00034288,120]
[392046381,1761119639454,-219.48241369,0.00034288,120]
[392046382,1761119639503,-506.33856176,0.00034288,120]
[392046383,1761119639551,-500.0,0.00034288,120]
[392046384,1761119639599,-510.74085419,0.00034288,120]
[392046385,1761119639646,-592.56100663,0.00034288,120]
[392046386,1761119639692,-500.0,0.00034288,120]
[392046387,1761119639747,-507.99716124,0.00034288,120]
[392046388,1761119639795,-500.0,0.00034288,120]
[392046389,1761119639841,-500.0,0.00034288,120]
[392046390,1761119639885,-500.0,0.00034288,120]
[392046391,1761119639929,-524.22143616,0.00034288,120]
[392046392,1761119639975,-525.79203732,0.00034288,120]
[392046393,1761119640023,-589.11393809,0.00034288,120]
[392046394,1761119640069,-506.96271955,0.00034288,120]
[392046395,1761119640116,-504.1449882,0.00034288,120]
[392046396,1761119640164,-518.35213056,0.00034288,60]
[392046397,1761119640213,-542.56367871,0.00034288,120]
[392046398,1761119640262,-500.0,0.00034288,120]
[392046399,1761119640316,-507.41906742,0.00034288,120]
[392046400,1761119640369,-311.03454233,0.00034288,120]
[392046401,1761119640419,-511.53620062,0.00034288,120]
[392046402,1761119640468,-504.95725868,0.00034288,30]
[392046403,1761119640516,-500.0,0.00034288,120]
[392046404,1761119640565,-500.0,0.00034288,120]
[392046405,1761119640613,-500.0,0.00034288,120]
[392046406,1761119640660,-502.97422167,0.00034288,120]
[392046407,1761119640707,-500.0,0.00034288,120]
[392046408,1761119640754,-509.27979862,0.00034288,120]
[392046409,1761119640802,-648.26132748,0.00034288,120]
[392046410,1761119640849,-490.55745967,0.00034288,120]
[392046411,1761119640896,-500.0,0.00034288,120]
[392046412,1761119640943,-511.74418771,0.00034288,120]
[392046413,1761119640989,-505.26042846,0.00034288,120]
[392046414,1761119641035,-500.0,0.00034288,120]
[392046415,1761119641080,-545.46,0.00034288,120]
[392046416,1761119641122,-502.27172177,0.00034288,120]
[392046417,1761119641165,-500.0,0.00034288,120]
[392046418,1761119641210,-500.0,0.00034288,120]
[392046419,1761119641258,-649.07,0.00034288,120]
[392046420,1761119641307,-592.57148571,0.00034288,120]
[392046421,1761119641355,-500.0,0.00034288,120]
[392046422,1761119641403,-500.0,0.00034288,120]
[392046423,1761119641453,-373.73736138,0.00034288,120]
[392046424,1761119641500,-502.35512583,0.00034288,120]
[392046425,1761119641548,-500.0,0.00034288,120]
[392046426,1761119641594,-461.58022605,0.00034288,120]
[392046427,1761119641642,-615.43341934,0.00034288,120]
[392046428,1761119641691,-500.0,0.00034288,120]
[392046429,1761119641737,-403.61880824,0.00034288,120]
[392046430,1761119641784,-501.21690092,0.00034288,120]
[392046431,1761119641831,-500.0,0.00034288,120]
[392046432,1761119641888,-527.98514177,0.00034288,120]
[392046433,1761119641944,-519.39742862,0.00034288,120]
[392046434,1761119641995,-500.0,0.00034288,60]
[392046435,1761119642045,-500.0,0.00034288,120]
[392046436,1761119642099,-509.84306097,0.00034288,120]
[392046437,1761119642153,-512.37146265,0.00034288,120]
[392046438,1761119642207,-456.71509451,0.00034288,120]
[392046439,1761119642262,-517.15626074,0.00034288,120]
[392046440,1761119642317,-509.95353925,0.00034288,120]
[392046441,1761119642370,-552.91218146,0.00034288,120]
[392046442,1761119642420,-518.94374418,0.00034288,120]
[392046443,1761119642473,-500.0,0.00034288,120]
[392046444,1761119642527,-500.0,0.00034288,120]
[392046445,1761119642580,-500.0,0.00034288,120]
[392046446,1761119642632,-500.0,0.00034288,120]
[392046447,1761119642685,-500.0,0.00034288,120]
[392046448,1761119642739,-503.51759667,0.00034288,120]
[392046449,1761119642793,-406.94697541,0.00034288,120]
[392046450,1761119642846,-500.0,0.00034288,120]
[392046451,1761119642899,-540.39577869,0.00034288,120]
[392046452,1761119642956,-639.77866193,0.00034288,120]
[392046453,1761119643011,-516.47370051,0.00034288,120]
[392046454,1761119643069,-560.05938195,0.00034288,120]
[392046455,1761119643124,-526.41912988,0.00034288,120]
[392046456,1761119643183,-542.2704203,0.00034288,120]
[392046457,1761119643250,-500.0,0.00034288,120]
[392046458,1761119643315,-500.0,0.00034288,120]
[392046459,1761119643370,-545.62901345,0.00034288,120]
[392046460,1761119643424,-500.0,0.00034288,120]
[392046461,1761119643481,-539.60877951,0.00034288,120]
[392046462,1761119643537,-501.3031975,0.00034288,120]
[392046463,1761119643602,-500.0,0.00034288,120]
[392046464,1761119643666,-623.07,0.00034288,120]
[392046465,1761119643725,-500.0,0.00034288,120]
[392046466,1761119643778,-233.09641359,0.00034288,60]
[392046467,1761119643830,-500.0,0.00034288,30]
[392046468,1761119643886,-500.0,0.00034288,30]
[392046469,1761119643944,-301.41,0.00034288,30]
[392046470,1761119643997,-500.0,0.00034288,120]
[392046471,1761119644045,-500.0,0.00034288,120]
[392046472,1761119644094,-301.92,0.00034288,120]
[392046473,1761119644145,-500.0,0.00034288,120]
[392046474,1761119644197,-500.0,0.00034288,120]
[392046475,1761119644246,-500.0,0.00034288,120]
[392046476,1761119644298,-500.0,0.00034288,120]
[392046477,1761119644346,-500.0,0.00034288,120]
[392046478,1761119644396,-646.52832855,0.00034288,120]
[392046479,1761119644446,-500.0,0.00034288,120]
[392046480,1761119644495,-500.0,0.00034288,120]
[392046481,1761119644542,-500.0,0.00034288,120]
[392046482,1761119644595,-203.43,0.00034288,120]
[392046483,1761119644644,-512.88531234,0.00034288,120]
[392046484,1761119644693,-500.0,0.00034288,120]
[392046485,1761119644742,-463.13342934,0.00034288,120]
[392046486,1761119644792,-510.58531513,0.00034288,120]
[392046487,1761119644843,-500.0,0.00034288,120]
[392046488,1761119644893,-533.80487885,0.00034288,120]
[392046489,1761119644940,-540.25376118,0.00034288,120]
[392046490,1761119644992,-500.0,0.00034288,120]
[392046491,1761119645044,-500.0,0.00034288,120]
[392046492,1761119645094,-500.0,0.00034288,120]
[392046493,1761119645145,-398.03571757,0.00034288,120]
[392046494,1761119645197,-500.0,0.00034288,120]
[392046495,1761119645247,-555.69227089,0.00034288,120]
[392046496,1761119645299,-500.0,0.00034288,120]
[392046497,1761119645356,-500.0,0.00034288,120]
[392046498,1761119645405,-500.0,0.00034288,120]
[392046499,1761119645461,-500.0,0.00034288,120]
[392046500,1761119645512,-505.91331084,0.00034288,120]
[392046501,1761119645563,-518.55131982,0.00034288,120]
[392046502,1761119645613,-500.0,0.00034288,120]
[392046503,1761119645663,-500.0,0.00034288,120]
[392046504,1761119645720,-500.0,0.00034288,120]
[392046505,1761119645771,-500.0,0.00034288,120]
[392046506,1761119645824,-500.0,0.00034288,120]
[392046507,1761119645872,-500.0,0.00034288,120]
[392046508,1761119645922,-525.62555034,0.00034288,120]
[392046509,1761119645972,-500.0,0.00034288,120]
[392046510,1761119646029,-500.0,0.00034288,120]
[392046511,1761119646078,-500.0,0.00034288,120]
[392046512,1761119646389,-500.0,0.00034288,120]
[392046513,1761119646440,-500.0,0.00034288,120]
[392046514,1761119646489,-500.0,0.00034288,120]
[392046515,1761119646538,-500.0,0.00034288,120]
[392046516,1761119646589,-500.0,0.00034288,120]
[392046517,1761119646641,-500.0,0.00034288,120]
[392046518,1761119646688,-500.0,0.00034288,120]
[392046519,1761119646737,-201.90893048,0.00034288,120]
[392046520,1761119646786,-500.0,0.00034288,120]
[392046521,1761119646851,-500.0,0.00034288,120]
[392046522,1761119646906,-500.0,0.00034288,120]
[392046523,1761119646959,-500.0,0.00034288,120]
[392046524,1761119647007,-500.0,0.00034288,120]
[392046525,1761119647055,-500.0,0.00034288,120]
[392046526,1761119647103,-500.0,0.00034288,120]
[392046527,1761119647151,-500.0,0.00034288,120]
[392046528,1761119647201,-500.0,0.00034288,120]
[392046529,1761119647255,-235.25272803,0.00034288,120]
[392046530,1761119647310,-539.29062905,0.00034288,120]
[392046531,1761119647364,-499.58870098,0.00034288,120]
[392046532,1761119647419,-478.39211956,0.00034288,120]
[392046533,1761119647472,-501.35264484,0.00034288,120]
[392046534,1761119647526,-500.0,0.00034288,120]
[392046535,1761119647582,-610.73194131,0.00034288,120]
[392046536,1761119647633,-553.52308014,0.00034288,120]
[392046537,1761119647682,-508.21184043,0.00034288,120]
[392046538,1761119647738,-500.0,0.00034288,120]
[392046539,1761119647787,-500.0,0.00034288,120]
[392046540,1761119647838,-248.98,0.00034288,120]
[392046541,1761119647887,-507.84907346,0.00034288,120]
[392046542,1761119647938,-525.70818251,0.00034288,120]
[392046543,1761119647992,-524.28301639,0.00034288,120]
[392046544,1761119648043,-560.31136898,0.00034288,120]
[392046545,1761119648094,-508.72601981,0.00034288,120]
[392046546,1761119648149,-500.0,0.00034288,120]
[392046547,1761119648210,-500.0,0.00034288,120]
[392046548,1761119648267,-500.0,0.00034288,120]
[392046549,1761119648320,-541.10651146,0.00034288,120]
[392046550,1761119648371,-530.55799366,0.00034288,120]
[392046551,1761119648429,-533.67708191,0.00034288,120]
[392046552,1761119648482,-500.0,0.00034288,120]
[392046553,1761119648538,-509.75916866,0.00034288,120]
[392046554,1761119648593,-521.19,0.00034288,120]
[392046555,1761119648644,-521.19,0.00034288,120]
[392046556,1761119648693,-521.19,0.00034288,120]
[392046557,1761119648743,-521.19,0.00034288,120]
[392046558,1761119648791,-536.69185579,0.00034288,120]
[392046559,1761119648844,-500.0,0.00034288,120]
[392046560,1761119648893,-521.19,0.00034288,120]
[392046561,1761119648941,-521.19,0.00034288,120]
[392046562,1761119648988,-521.19,0.00034288,120]
[392046563,1761119649037,-521.19,0.00034288,120]
[392046564,1761119649086,-521.19,0.00034288,120]
[392046565,1761119649134,-521.19,0.00034288,120]
[392046566,1761119649183,-521.19,0.00034288,120]
[392046567,1761119649240,-634.10302962,0.00034288,120]
[392046568,1761119649291,-521.19,0.00034288,120]
[392046569,1761119649340,-531.77356131,0.00034288,120]
[392046570,1761119649391,-521.19,0.00034288,120]
[392046571,1761119649440,-521.19,0.00034288,120]
[392046572,1761119649489,-521.19,0.00034288,120]
[392046573,1761119649537,-521.19,0.00034288,120]
[392046574,1761119649584,-521.19,0.00034288,120]
[392046575,1761119649631,-521.19,0.00034288,120]
[392046576,1761119649683,-521.19,0.00034288,120]
[392046577,1761119649735,-541.07350245,0.00034288,120]
[392046578,1761119649783,-521.19,0.00034288,120]
[392046579,1761119649831,-521.19,0.00034288,120]
[392046580,1761119649879,-521.19,0.00034288,120]
[392046581,1761119649928,-521.19,0.00034288,120]
[392046582,1761119649976,-521.23081927,0.00034288,120]
[392046583,1761119650025,-500.0,0.00034288,120]
[392046584,1761119650086,-522.64445716,0.00034288,120]
[392046585,1761119650134,-509.42196629,0.00034288,120]
[392046586,1761119650182,-500.0,0.00034288,120]
[392046587,1761119650233,-500.0,0.00034288,120]
[392046588,1761119650286,-500.0,0.00034288,120]
[392046589,1761119650342,-303.32,0.00034288,120]
[392046590,1761119650395,-500.0,0.00034288,120]
[392046591,1761119650444,-500.0,0.00034288,120]
[392046592,1761119650492,-500.0,0.00034288,120]
[392046593,1761119650540,-566.14502214,0.00034288,120]
[392046594,1761119650588,-500.0,0.00034288,120]
[392046595,1761119650634,-559.55462596,0.00034288,120]
[392046596,1761119650681,-500.0,0.00034288,120]
[392046597,1761119650731,-500.0,0.00034288,120]
[392046598,1761119650778,-500.0,0.00034288,120]
[392046599,1761119650825,-500.0,0.00034288,120]
[392046600,1761119650872,-500.0,0.00034288,120]
[392046601,1761119650920,-500.0,0.00034288,120]
[392046602,1761119650969,-500.0,0.00034288,120]
[392046603,1761119651017,-500.0,0.00034288,120]
[392046604,1761119651064,-500.0,0.00034288,120]
[392046605,1761119651111,-500.0,0.00034288,120]
[392046606,1761119651160,-500.0,0.00034288,120]
[392046607,1761119651212,-500.0,0.00034288,120]
[392046608,1761119651431,-500.0,0.00034288,120]
[392046609,1761119651479,-500.0,0.00034288,120]
[392046610,1761119651526,-500.0,0.00034288,120]
[392046611,1761119651574,-500.0,0.00034288,120]
[392046612,1761119651623,-500.0,0.00034288,120]
[392046613,1761119651672,-500.0,0.00034288,120]
[392046614,1761119651721,-500.0,0.00034288,120]
[392046615,1761119651768,-500.0,0.00034288,120]
[392046616,1761119651817,-500.0,0.00034288,120]
[392046617,1761119651867,-500.0,0.00034288,120]
[392046618,1761119651913,-460.58635,0.00034288,120]
[392046619,1761119651960,-619.07474474,0.00034288,120]
[392046620,1761119652008,-506.38395736,0.00034288,120]
[392046621,1761119652054,-500.0,0.00034288,120]
[392046622,1761119652102,-500.0,0.00034288,120]
[392046623,1761119652158,-190.6304303,0.00034288,120]
[392046624,1761119652213,-525.79706564,0.00034288,120]
[392046625,1761119652272,-500.0,0.00034288,120]
[392046626,1761119652325,-547.02678886,0.00034288,120]
[392046627,1761119652374,-500.0,0.00034288,120]
[392046628,1761119652422,-500.0,0.00034288,120]
[392046629,1761119652470,-500.0,0.00034288,120]
[392046630,1761119652516,-500.0,0.00034288,120]
[392046631,1761119652562,-500.0,0.00034288,120]
[392046632,1761119652608,-500.0,0.00034288,120]
[392046633,1761119652655,-500.0,0.00034288,120]
[392046634,1761119652698,-500.0,0.00034288,120]
[392046635,1761119652741,-500.0,0.00034288,120]
[392046636,1761119652784,-500.0,0.00034288,120]
[392046637,1761119652828,-500.0,0.00034288,120]
[392046638,1761119652872,-597.51277977,0.00034288,120]
[392046639,1761119652917,-549.96861634,0.00034288,120]
[392046640,1761119652963,-500.0,0.00034288,120]
[392046641,1761119653008,-500.0,0.00034288,120]
[392046642,1761119653053,-500.0,0.00034288,120]
[392046643,1761119653098,-225.00459781,0.00034288,120]
[392046644,1761119653144,-506.09660616,0.00034288,120]
[392046645,1761119653193,-500.0,0.00034288,120]
[392046646,1761119653242,-500.0,0.00034288,120]
[392046647,1761119653288,-500.0,0.00034288,120]
[392046648,1761119653335,-289.0868268,0.00034288,120]
[392046649,1761119653382,-260.4418396,0.00034288,120]
[392046650,1761119653428,-1017.48,0.00034288,120]
[392046651,1761119653472,-500.0,0.00034288,120]
[392046652,1761119653517,-1017.48,0.00034288,120]
[392046653,1761119653561,-500.0,0.00034288,120]
[392046654,1761119653605,-1017.48,0.00034288,120]
[392046655,1761119653648,-500.0,0.00034288,120]
[392046656,1761119653691,-1017.48,0.00034288,120]
[392046657,1761119653735,-500.0,0.00034288,120]
[392046658,1761119653779,-1017.48,0.00034288,120]
[392046659,1761119653822,-500.0,0.00034288,120]
[392046660,1761119653867,-500.0,0.00034288,120]
[392046661,1761119653913,-1017.48,0.00034288,120]
[392046662,1761119653959,-500.0,0.00034288,120]
[392046663,1761119654003,-500.0,0.00034288,120]
[392046664,1761119654048,-1017.48,0.00034288,120]
[392046665,1761119654093,-500.0,0.00034288,120]
[392046666,1761119654140,-1017.48,0.00034288,120]
[392046667,1761119654183,-500.0,0.00034288,120]
[392046668,1761119654232,-1017.48,0.00034288,120]
[392046669,1761119654279,-500.0,0.00034288,120]
[392046670,1761119654325,-1017.48,0.00034288,120]
[392046671,1761119654370,-500.0,0.00034288,120]
[392046672,1761119654415,-1017.48,0.00034288,120]
[392046673,1761119654460,-493.9190674,0.00034288,120]
[392046674,1761119654504,-1017.48,0.00034288,120]
[392046675,1761119654550,-1017.48,0.00034288,120]
[392046676,1761119654594,-1017.48,0.00034288,120]
[392046677,1761119654638,-1017.48,0.00034288,120]
[392046678,1761119654682,-987.65,0.00034288,120]
[392046679,1761119654726,-1017.48,0.00034288,120]
[392046680,1761119654770,-987.65,0.00034288,120]
[392046681,1761119654842,-987.65,0.00034288,120]
[392046682,1761119654888,-1017.48,0.00034288,120]
[392046683,1761119654933,-1017.48,0.00034288,120]
[392046684,1761119654979,-987.65,0.00034288,120]
[392046685,1761119655027,-1017.48,0.00034288,120]
[392046686,1761119655074,-987.65,0.00034288,120]
[392046687,1761119655120,-1017.48,0.00034288,120]
[392046688,1761119655166,-987.65,0.00034288,120]
[392046689,1761119655212,-1017.48,0.00034288,120]
[392046690,1761119655260,-987.65,0.00034288,120]
[392046691,1761119655312,-1017.48,0.00034288,120]
[392046692,1761119655362,-987.65,0.00034288,120]
[392046693,1761119655411,-1017.48,0.00034288,120]
[392046694,1761119655460,-987.65,0.00034288,120]
[392046695,1761119655509,-1017.5742527,0.00034288,120]
[392046696,1761119655557,-987.65,0.00034288,120]
[392046697,1761119655606,-987.65,0.00034288,120]
[392046698,1761119655654,-987.65,0.00034288,120]
[392046699,1761119655980,987.65,0.00034288,120]
[392046700,1761119656049,987.65,0.00034288,120]
[392046701,1761119656099,987.65,0.00034288,120]
[392046702,1761119656153,987.65,0.00034288,120]
[392046703,1761119656204,987.65,0.00034288,120]
[392046705,1761119656253,987.65,0.00034288,120]
[392046706,1761119656304,987.65,0.00034288,120]
[392046707,1761119656359,987.65,0.00034288,120]
[392046708,1761119656416,987.65,0.00034288,120]
[392046709,1761119656470,987.65,0.00034288,120]
[392046710,1761119656524,987.65,0.00034288,120]
[392046711,1761119656574,987.70414192,0.00034288,120]
[392046712,1761119676192,500.0,0.00034288,120]
[392046713,1761119676421,500.0,0.00034288,120]
[392046714,1761119677071,-167.24346945,0.00032,120]
[392046715,1761119677121,-500.0,0.00033721,120]
[392046716,1761119677179,-500.0,0.00033772,120]
[392046717,1761119677228,-302.00980445,0.00033881,65]
[392046718,1761119677275,-7062.85766524,0.000339,120]
[392046719,1761119677320,-500.0,0.00033972,120]
[392046720,1761119677364,-500.0,0.00033972,120]
[392046721,1761119677411,-500.0,0.00033972,120]
[392046722,1761119677467,-500.0,0.00033972,120]
[392046723,1761119677512,-515.69519467,0.00033972,120]
[392046724,1761119677556,-500.0,0.00033972,120]
[392046725,1761119677604,-500.0,0.00033972,120]
[392046726,1761119677651,-509.91183313,0.00033989,120]
[392046727,1761119677699,-614.60902936,0.00033989,120]
[392046728,1761119677745,-500.0,0.00033989,120]
[392046729,1761119677792,-235.18,0.00033989,120]
[392046730,1761119677840,-500.0,0.00033999,120]
[392046731,1761119677890,-500.0,0.00033999,120]
[392046732,1761119677939,-500.0,0.00033999,120]
[392046733,1761119677989,-500.0,0.00033999,120]
[392046734,1761119678041,-502.75992422,0.00033999,120]
[392046735,1761119678089,-1999.0,0.00033999,120]
[392046736,1761119678139,-500.0,0.00033999,120]
[392046737,1761119678188,-23912.32888605,0.00034,120]
[392046738,1761119678239,-10000.0,0.00034,120]
[392046739,1761119678288,-500.0,0.00034038,120]
[392046740,1761119678335,-500.0,0.00034038,120]
[392046741,1761119678388,-500.0,0.00034038,120]
[392046742,1761119678440,-500.0,0.00034038,120]
[392046743,1761119678493,-500.0,0.0003405,120]
[392046744,1761119678539,-150.0,0.00034051,120]
[392046745,1761119678584,-500.0,0.00034099,120]
[392046746,1761119678627,-500.0,0.00034099,120]
[392046747,1761119678675,-515.25915557,0.00034099,120]
[392046748,1761119678723,-245.29,0.00034099,120]
[392046749,1761119678771,-500.0,0.00034099,120]
[392046750,1761119678817,-500.0,0.00034099,120]
[392046751,1761119678863,-2517.0,0.000341,120]
[392046752,1761119678910,-89244.50788484,0.00034156,120]
[392046753,1761119678958,-500.0,0.00034199,120]
[392046754,1761119679012,-500.0,0.00034269,120]
[392046755,1761119679061,-500.0,0.00034269,120]
[392046756,1761119679117,-500.0,0.00034288,120]
[392046757,1761119679167,-500.0,0.00034288,120]
[392046758,1761119679216,-500.0,0.00034288,120]
[392046759,1761119679268,-500.0,0.00034288,120]
[392046760,1761119679325,-511.934459,0.00034293,120]
[392046761,1761119679377,-1000.0,0.000343,60]
[392046762,1761119679425,-150.0,0.000343,60]
[392046763,1761119679474,-150.0,0.000343,60]
[392046764,1761119679529,-150.0,0.00034308,120]
[392046765,1761119679579,-500.0,0.00034334,120]
[392046766,1761119679629,-500.0,0.00034334,120]
[392046767,1761119679678,-500.0,0.00034334,120]
[392046768,1761119679726,-500.0,0.00034334,120]
[392046769,1761119679773,-500.0,0.00034334,120]
[392046770,1761119679815,-500.0,0.00034334,120]
[392046771,1761119679855,-500.0,0.00034334,120]
[392046772,1761119679898,-500.0,0.00034334,120]
[392046773,1761119679944,-500.0,0.00034334,120]
[392046774,1761119679989,-500.0,0.00034334,120]
[392046775,1761119680032,-155.82,0.00034334,120]
[392046776,1761119680076,-1664296.23541834,0.00034335,120]
[392046777,1761119680123,-1175092.35727568,0.00034335,120]
[392046778,1761119684034,-500.0,0.00033721,120]
[392046779,1761119684080,-330.46475231,0.00033721,120]
[392046780,1761119684157,-489203.87814266,0.00034335,120]
[392046781,1761119684208,-1664296.23541834,0.00034335,120]
[392046782,1761119684254,-845669.42168669,0.00034335,120]
[392046783,1761119690673,-818626.81373165,0.00034335,120]
[392046784,1761119690724,-1664296.23541834,0.00034335,120]
[392046785,1761119690772,-1664296.23541834,0.00034335,120]
[392046786,1761119690818,-1664296.23541834,0.00034335,120]
[392046787,1761119690862,-1664296.23541834,0.00034335,120]
[392046788,1761119690905,-1524188.24459499,0.00034335,120]
[392046789,1761119694973,-140107.99082335,0.00034335,120]
[392046790,1761119695025,-841.09,0.000345,120]
[392046791,1761119695079,-156.0,0.000345,120]
[392046792,1761119695141,-2000000.0,0.000348,120]
[392046793,1761119695188,-162.0,0.000348,120]
[392046794,1761119695243,-1999.0,0.00034821,120]
[392046795,1761119695297,-311.51446294,0.00035,60]
[392046796,1761119695348,-596.19,0.00035,120]
[392046797,1761119695400,-7062.85766524,0.00035,120]
[392046798,1761119695630,-532.61,0.00035,120]
[392046799,1761119695681,-15000.0,0.00035,120]
[392046800,1761119695731,-15000.0,0.00035,120]
[392046801,1761119695780,-534.05,0.00035,120]
[392046802,1761119695829,-160.17408605,0.00035,60]
[392046803,1761119695878,-15000.0,0.0003505,120]
[392046804,1761119695929,-15000.0,0.0003505,120]
[392046805,1761119695979,-6064.73,0.000351,120]
[392046806,1761119696026,-15000.0,0.000351,120]
[392046807,1761119696075,-15000.0,0.0003515,120]
[392046808,1761119696119,-15000.0,0.000352,120]
[392046809,1761119696164,-15000.0,0.0003525,120]
[392046810,1761119696210,-15000.0,0.000353,120]
[392046811,1761119696255,-15000.0,0.0003535,120]
[392046812,1761119696303,-15000.0,0.000354,120]
[392046813,1761119696349,-15000.0,0.0003545,120]
[392046814,1761119696391,-150.0,0.0003549,120]
[392046815,1761119696432,-14999.99,0.000355,120]
[392046816,1761119696475,-1999.0,0.00035643,120]
[392046817,1761119696520,-150.0,0.00035797,120]
[392046818,1761119696562,-2440811.99131015,0.000358,120]
[392046819,1761119696605,-210.9,0.0003588,120]
[392046820,1761119696648,-6580.28071479,0.00036,120]
[392046821,1761119696689,-7062.85766524,0.00036,120]
[392046822,1761119696737,-267.86,0.00036311,120]
[392046823,1761119696792,-1999.0,0.00036465,120]
[392046824,1761119696840,-205.59624012,0.00036913,120]
[392046825,1761119696888,-7547.0,0.00037,120]
[392046826,1761119696933,-1784.16375639,0.00037,120]
[392046827,1761119696981,-301.56,0.000371,60]
[392046828,1761119697029,-7062.85766524,0.000371,120]
[392046829,1761119697080,-338.94995825,0.000372,120]
[392046830,1761119697127,-338.94995822,0.000372,120]
[392046831,1761119697173,-338.94995822,0.000372,120]
[392046832,1761119697219,-338.94995822,0.000372,120]
[392046833,1761119697267,-338.94995822,0.000372,120]
[392046834,1761119697318,-1999.0,0.00037287,120]
[392046835,1761119697369,-2000.0,0.00037452,120]
[392046836,1761119697416,-1444.0,0.00037753,120]
[392046837,1761119697463,-709.97,0.00037808,60]
[392046838,1761119697510,-709.97,0.00037839,80]
[392046839,1761119697563,-709.97,0.00037869,100]
[392046840,1761119697611,-709.97,0.000379,120]
[392046841,1761119697656,-156.0,0.000381,120]
[392046842,1761119697700,-1999.0,0.00038109,120]
[392046843,1761119697745,-7062.85766524,0.000382,120]
[392046844,1761119697793,-162.0,0.000387,120]
[392046845,1761119697840,-39906.67409523,0.000388,120]
[392046846,1761119697890,-1499999.0,0.000388,120]
[392046847,1761119697937,-315.31786416,0.000389,120]
[392046848,1761119697986,-1999.0,0.00038931,120]
[392046849,1761119698034,-446.96695307,0.00038986,90]
[392046850,1761119698082,-1328.27367305,0.0003899,120]
[392046851,1761119698129,-224.29503319,0.00039,120]
[392046852,1761119698174,-150.0,0.00039,120]
[392046853,1761119698220,-1542.52406983,0.00039,120]
[392046854,1761119698266,-3000.0,0.00039,90]
[392046855,1761119698318,-93000.0,0.00039,120]
[392046856,1761119698365,-7547.0,0.00039,120]
[392046857,1761119698410,-10000.0,0.00039,120]
[392046858,1761119698456,-7062.85766524,0.000394,120]
[392046859,1761119698502,-1099.99999999,0.000395,120]
[392046860,1761119698548,-205.59624012,0.00039653,120]
[392046861,1761119698593,-205.59624014,0.00039653,120]
[392046862,1761119698641,-1999.0,0.00039753,120]
[392046863,1761119698686,-1187.99769839,0.0003985,60]
[392046864,1761119698735,-9585.0,0.000399,120]
[392046865,1761119698781,-3119.92354018,0.000399,120]
[392046866,1761119698828,-257.004604,0.00039999,120]
[392046867,1761119698876,-370.84501622,0.0004,120]
[392046868,1761119698923,-1000.0,0.0004,60]
[392046869,1761119698968,-150.0,0.0004,120]